[Event "44th Chess Olympiad Open 2022"]
[Site "Chennai"]
[Date "2022.07.31"]
[Round "3.47"]
[White "Olson, Hamish"]
[Black "Matola Ernest"]
[Result "1-0"]
[WhiteElo "2343"]
[BlackElo "1964"]
[Annotator "RC"]
[PlyCount "65"]
[EventDate "2022.??.??"]
[TimeControl "60"]

1. e4 {[%emt 0:00:03]} e5 {[%emt 0:00:46]} 2. Nf3 {[%emt 0:00:12]} Nf6 {
[%emt 0:00:31]} 3. Nxe5 {[%emt 0:00:13]} d6 {[%emt 0:00:49]} 4. Nf3 {[%emt 0:
00:00]} Nxe4 {[%emt 0:01:27]} 5. Qe2 {[%emt 0:00:10]} Qe7 {[%emt 0:00:13]} 6.
d3 {[%emt 0:00:10]} Nc5 {[%emt 0:00:40]} 7. Nc3 {[%emt 0:00:15]} Qxe2+ {
[%emt 0:00:42]} 8. Bxe2 {[%emt 0:00:10]} Be7 {[%emt 0:02:10]} 9. d4 {[%emt 0:
00:00]} Ne6 {[%emt 0:02:43]} 10. O-O {[%emt 0:01:24]} O-O {[%emt 0:02:08]} 11.
Re1 {[%emt 0:03:52]} Bf6 {[%emt 0:04:38]} 12. Be3 {[%emt 0:02:37]} a6 {[%emt 0:
00:00]} 13. Ne4 {[%emt 0:03:24]} Be7 {[%emt 0:04:11]} 14. d5 {[%emt 0:02:48]}
Nd8 {[%emt 0:02:32]} 15. c4 {[%emt 0:01:47]} b6 {[%emt 0:01:12]} 16. Nd4 {
[%emt 0:01:38]} Re8 {[%emt 0:04:29]} 17. Bd3 {[%emt 0:01:47]} Nd7 {[%emt 0:00:
00]} 18. Bc2 {[%emt 0:05:28]} h6 {[%emt 0:04:59]} 19. h3 {[%emt 0:06:21]} Nc5 {
[%emt 0:02:45]} 20. Nc3 {[%emt 0:04:07]} Bd7 {[%emt 0:03:16]} 21. b4 {[%emt 0:
00:00]} Ncb7 {[%emt 0:00:44]} 22. Bf5 {[%emt 0:02:04]} Bxf5 {[%emt 0:00:45]}
23. Nxf5 {[%emt 0:00:09]} Bf6 {[%emt 0:09:04]} 24. Bd4 {[%emt 0:00:34]} Be5 {
[%emt 0:02:04]} 25. f4 {[%emt 0:00:47]} Bxd4+ {[%emt 0:00:47]} 26. Nxd4 {
[%emt 0:00:05]} Rxe1+ {[%emt 0:00:46]} 27. Rxe1 {[%emt 0:00:03]} Kf8 {[%emt 0:
00:00]} 28. a3 {[%emt 0:03:19]} Rc8 {[%emt 0:01:33]} 29. Nc6 {[%emt 0:03:55]}
Nxc6 {[%emt 0:02:39]} 30. dxc6 {[%emt 0:00:03]} Nd8 {[%emt 0:00:20]} 31. b5 {
[%emt 0:00:27]} f5 {[%emt 0:04:37]} 32. Nd5 {[%emt 0:00:26]} axb5 {[%emt 0:00:
00]} 33. cxb5 {[%emt 0:00:22]} 1-0

[Event "44th Chess Olympiad Open 2022"]
[Site "Chennai"]
[Date "2022.07.31"]
[Round "3.47"]
[White "Chimthere, Alfred Charles"]
[Black "Waldhausen Gordon, Frederick"]
[Result "1/2-1/2"]
[WhiteElo "2035"]
[BlackElo "2028"]
[Annotator "NA RC"]
[PlyCount "99"]
[EventDate "2022.??.??"]
[TimeControl "60"]

1. d4 {[%emt 0:00:35]} d5 {[%emt 0:00:04]} 2. c4 {[%emt 0:00:17]} e6 {[%emt 0:
00:00]} 3. Nf3 {[%emt 0:00:20]} Nf6 {[%emt 0:00:11]} 4. Bg5 {[%emt 0:00:37]}
Be7 {[%emt 0:00:08]} 5. Nbd2 {[%emt 0:01:32]} h6 {[%emt 0:00:07]} 6. Bh4 {
[%emt 0:03:05]} O-O {[%emt 0:00:11]} 7. e3 {[%emt 0:00:46]} b6 {[%emt 0:01:18]}
8. Bd3 {[%emt 0:05:35]} Bb7 {[%emt 0:01:27]} 9. O-O {[%emt 0:00:42]} Nbd7 {
[%emt 0:00:17]} 10. Qe2 {[%emt 0:02:49]} Ne4 {[%emt 0:02:17]} 11. Bxe7 {
[%emt 0:06:14]} Qxe7 {[%emt 0:00:11]} 12. cxd5 {[%emt 0:02:11]} exd5 {[%emt 0:
00:00]} 13. Ba6 {[%emt 0:03:18]} Bxa6 {[%emt 0:01:04]} 14. Qxa6 {[%emt 0:00:04]
} c5 {[%emt 0:01:19]} 15. Qb7 {[%emt 0:17:20]} Nxd2 {[%emt 0:00:57]} 16. Nxd2 {
[%emt 0:00:06]} Qd6 {[%emt 0:02:44]} 17. Qa6 {[%emt 0:01:02]} cxd4 {[%emt 0:00:
00]} 18. exd4 {[%emt 0:00:14]} Rac8 {[%emt 0:04:02]} 19. Rac1 {[%emt 0:02:09]}
Rxc1 {[%emt 0:01:46]} 20. Rxc1 {[%emt 0:00:05]} Nf6 {[%emt 0:01:08]} 21. Rc8 {
[%emt 0:07:30]} Qb4 {[%emt 0:07:51]} 22. Rxf8+ {[%emt 0:00:31]} Kxf8 {[%emt 0:
00:00]} 23. Qc8+ {[%emt 0:00:42]} Ke7 {[%emt 0:01:24]} 24. Qc7+ {[%emt 0:02:19]
} Nd7 {[%emt 0:00:42]} 25. Qc3 {[%emt 0:03:21]} Qxc3 {[%emt 0:01:04]} 26. bxc3
{[%emt 0:00:01]} Kd6 {[%emt 0:00:31]} 27. Kf1 {[%emt 0:00:09]} Kc6 {[%emt 0:00:
00]} 28. Ke2 {[%emt 0:03:43]} Nf6 {[%emt 0:00:52]} 29. f3 {[%emt 0:00:48]} Kb5
{[%emt 0:02:08]} 30. Kd3 {[%emt 0:01:29]} Ka4 {[%emt 0:02:05]} 31. c4 {[%emt 0:
00:00]} Kb4 {[%emt 0:03:23]} 32. g3 {[%emt 0:01:43]} dxc4+ {[%emt 0:06:37]} 33.
Nxc4 {[%emt 0:00:06]} Ne8 {[%emt 0:02:22]} 34. Ne5 {[%emt 0:00:54]} Nd6 {
[%emt 0:00:25]} 35. Nc6+ {[%emt 0:00:27]} Ka3 {[%emt 0:00:16]} 36. Nxa7 {
[%emt 0:00:40]} Kxa2 {[%emt 0:00:31]} 37. d5 {[%emt 0:12:27]} Ka3 {[%emt 0:00:
00]} 38. Nc6 {[%emt 0:04:35]} b5 {[%emt 0:06:59]} 39. Kc3 {[%emt 0:02:22]} h5 {
[%emt 0:03:45]} 40. h4 {[%emt 0:03:45]} g6 {[%emt 0:03:53]} 41. g4 {[%emt 0:00:
00]} Ka4 {[%emt 0:37:56]} 42. Nb4 {[%emt 0:00:00]} f6 {[%emt 0:00:00]} 43. Nd3
{[%emt 0:00:00]} Ka3 {[%emt 0:00:00]} 44. Kd4 {[%emt 0:00:00]} Nb7 {[%emt 0:00:
00]} 45. Kc3 {[%emt 0:00:00]} Nd6 {[%emt 0:00:00]} 46. Nb4 {[%emt 0:00:00]} Nb7
{[%emt 0:00:00]} 47. Nc2+ {[%emt 0:00:00]} Ka4 {[%emt 0:00:00]} 48. Nb4 {
[%emt 0:00:00]} Nd6 {[%emt 0:00:00]} 49. Nc6 {[%emt 0:00:00]} Nb7 {[%emt 0:00:
00]} 50. Nb4 {[%emt 0:00:00]} 1/2-1/2

[Event "44th Chess Olympiad Open 2022"]
[Site "Chennai"]
[Date "2022.07.31"]
[Round "3.47"]
[White "Nyambalo, Joseph Xavier"]
[Black "Gourlay, Iain"]
[Result "1/2-1/2"]
[WhiteElo "1981"]
[BlackElo "2321"]
[Annotator "RC"]
[PlyCount "124"]
[EventDate "2022.??.??"]
[TimeControl "60"]

1. c4 {[%emt 0:00:03]} e6 {[%emt 0:00:17]} 2. g3 {[%emt 0:00:39]} d5 {[%emt 0:
00:00]} 3. Bg2 {[%emt 0:00:08]} Nf6 {[%emt 0:01:10]} 4. Nf3 {[%emt 0:01:32]}
dxc4 {[%emt 0:01:39]} 5. Qa4+ {[%emt 0:06:55]} Bd7 {[%emt 0:00:30]} 6. Qxc4 {
[%emt 0:00:05]} c5 {[%emt 0:00:26]} 7. Ne5 {[%emt 0:02:39]} Qc8 {[%emt 0:00:27]
} 8. Nc3 {[%emt 0:02:35]} Nc6 {[%emt 0:01:38]} 9. Nxd7 {[%emt 0:00:40]} Qxd7 {
[%emt 0:00:30]} 10. O-O {[%emt 0:00:35]} Be7 {[%emt 0:02:08]} 11. d3 {[%emt 0:
00:00]} O-O {[%emt 0:07:30]} 12. Bg5 {[%emt 0:08:47]} b6 {[%emt 0:23:43]} 13.
a3 {[%emt 0:05:19]} Rac8 {[%emt 0:06:56]} 14. Rad1 {[%emt 0:01:05]} Nd4 {
[%emt 0:05:18]} 15. Bxf6 {[%emt 0:11:33]} Bxf6 {[%emt 0:01:50]} 16. e3 {
[%emt 0:00:29]} b5 {[%emt 0:01:40]} 17. Qa2 {[%emt 0:00:34]} Nf5 {[%emt 0:00:
00]} 18. Ne4 {[%emt 0:00:27]} Bd8 {[%emt 0:02:54]} 19. a4 {[%emt 0:03:17]} a6 {
[%emt 0:05:06]} 20. Rc1 {[%emt 0:03:06]} Be7 {[%emt 0:06:43]} 21. Rfd1 {
[%emt 0:03:28]} Rfd8 {[%emt 0:01:00]} 22. axb5 {[%emt 0:00:53]} Qxb5 {[%emt 0:
00:00]} 23. Bf1 {[%emt 0:03:36]} Qb6 {[%emt 0:02:24]} 24. Rc4 {[%emt 0:02:26]}
Rb8 {[%emt 0:04:12]} 25. Rd2 {[%emt 0:02:39]} Nd6 {[%emt 0:02:34]} 26. Nxd6 {
[%emt 0:01:01]} Rxd6 {[%emt 0:02:16]} 27. Rdc2 {[%emt 0:02:42]} Rd7 {[%emt 0:
00:00]} 28. Qa4 {[%emt 0:04:29]} Rdd8 {[%emt 0:00:59]} 29. Qa3 {[%emt 0:05:38]}
Bf8 {[%emt 0:02:09]} 30. Qc3 {[%emt 0:02:15]} g6 {[%emt 0:00:39]} 31. Ra4 {
[%emt 0:00:40]} Rdc8 {[%emt 0:01:58]} 32. Qc4 {[%emt 0:00:11]} a5 {[%emt 0:00:
00]} 33. Bg2 {[%emt 0:01:16]} Rd8 {[%emt 0:02:01]} 34. Bf1 {[%emt 0:01:29]}
Rdc8 {[%emt 0:00:13]} 35. Qa2 {[%emt 0:00:59]} Bg7 {[%emt 0:01:01]} 36. Rxa5 {
[%emt 0:02:56]} Qb4 {[%emt 0:01:18]} 37. Qa3 {[%emt 0:03:27]} Qe1 {[%emt 0:00:
00]} 38. Raxc5 {[%emt 0:03:31]} Rxc5 {[%emt 0:00:13]} 39. Qxc5 {[%emt 0:00:09]}
Bxb2 {[%emt 0:00:28]} 40. d4 {[%emt 0:02:19]} Qb4 {[%emt 0:01:18]} 41. Qxb4 {
[%emt 0:31:36]} Rxb4 {[%emt 0:30:08]} 42. Kg2 {[%emt 0:00:33]} Kg7 {[%emt 0:00:
00]} 43. h4 {[%emt 0:01:02]} Rb7 {[%emt 0:00:00]} 44. Ba6 {[%emt 0:00:00]} Rb6
{[%emt 0:00:00]} 45. Be2 {[%emt 0:00:00]} h5 {[%emt 0:00:00]} 46. Bf3 {[%emt 0:
00:00]} Ba3 {[%emt 0:00:00]} 47. d5 {[%emt 0:00:00]} exd5 {[%emt 0:00:00]} 48.
Bxd5 {[%emt 0:00:00]} Rd6 {[%emt 0:00:00]} 49. e4 {[%emt 0:00:00]} Rd7 {
[%emt 0:00:00]} 50. Rc8 {[%emt 0:00:00]} Bd6 {[%emt 0:00:00]} 51. Rc6 {[%emt 0:
00:00]} Be5 {[%emt 0:00:00]} 52. f4 {[%emt 0:00:00]} Bd4 {[%emt 0:00:00]} 53.
Rc4 {[%emt 0:00:00]} Bb6 {[%emt 0:00:00]} 54. Rb4 {[%emt 0:00:00]} Bc5 {
[%emt 0:00:00]} 55. Rb5 {[%emt 0:00:00]} Rc7 {[%emt 0:00:00]} 56. Rb2 {[%emt 0:
00:00]} Bd4 {[%emt 0:00:00]} 57. Rd2 {[%emt 0:00:00]} Be3 {[%emt 0:00:00]} 58.
Re2 {[%emt 0:00:00]} Bd4 {[%emt 0:00:00]} 59. e5 {[%emt 0:00:00]} Rc5 {[%emt 0:
00:00]} 60. e6 {[%emt 0:00:00]} fxe6 {[%emt 0:00:00]} 61. Bxe6 {[%emt 0:00:00]}
Rb5 {[%emt 0:00:00]} 62. Kf3 {[%emt 0:00:00]} Rb2 {[%emt 0:00:00]} 1/2-1/2

[Event "44th Chess Olympiad Open 2022"]
[Site "Chennai"]
[Date "2022.07.31"]
[Round "3.48"]
[White "Kobese, Watu"]
[Black "Gabriel, Davidson"]
[Result "1/2-1/2"]
[WhiteElo "2311"]
[BlackElo "1915"]
[Annotator "RC"]
[PlyCount "82"]
[EventDate "2022.??.??"]
[TimeControl "60"]

1. e4 {[%emt 0:00:04]} e5 {[%emt 0:00:41]} 2. Nf3 {[%emt 0:00:14]} Nc6 {
[%emt 0:00:20]} 3. Bb5 {[%emt 0:00:18]} a6 {[%emt 0:01:50]} 4. Ba4 {[%emt 0:00:
00]} Nf6 {[%emt 0:00:21]} 5. O-O {[%emt 0:00:11]} Be7 {[%emt 0:01:20]} 6. Re1 {
[%emt 0:00:10]} b5 {[%emt 0:00:16]} 7. Bb3 {[%emt 0:00:09]} O-O {[%emt 0:00:19]
} 8. h3 {[%emt 0:01:22]} Bb7 {[%emt 0:01:21]} 9. d3 {[%emt 0:04:07]} h6 {
[%emt 0:01:19]} 10. a4 {[%emt 0:05:49]} Na5 {[%emt 0:06:32]} 11. Ba2 {[%emt 0:
00:00]} d6 {[%emt 0:00:43]} 12. Nbd2 {[%emt 0:05:57]} c5 {[%emt 0:00:44]} 13.
Nf1 {[%emt 0:01:08]} Bc8 {[%emt 0:01:52]} 14. Ng3 {[%emt 0:12:59]} Be6 {
[%emt 0:01:43]} 15. Nh2 {[%emt 0:04:06]} Nc6 {[%emt 0:04:36]} 16. f4 {[%emt 0:
00:00]} exf4 {[%emt 0:02:50]} 17. Bxf4 {[%emt 0:00:08]} Ne5 {[%emt 0:00:10]}
18. Nf3 {[%emt 0:03:52]} Ng6 {[%emt 0:00:18]} 19. Bd2 {[%emt 0:02:14]} Qd7 {
[%emt 0:01:40]} 20. Rf1 {[%emt 0:09:23]} d5 {[%emt 0:05:35]} 21. Qe2 {[%emt 0:
00:00]} dxe4 {[%emt 0:03:09]} 22. Nxe4 {[%emt 0:03:23]} Bxa2 {[%emt 0:08:11]}
23. Rxa2 {[%emt 0:00:44]} Nxe4 {[%emt 0:01:30]} 24. Qxe4 {[%emt 0:00:29]} Rae8
{[%emt 0:00:25]} 25. axb5 {[%emt 0:01:10]} axb5 {[%emt 0:00:28]} 26. Ra6 {
[%emt 0:01:12]} Rc8 {[%emt 0:11:26]} 27. Rfa1 {[%emt 0:05:11]} Rfe8 {[%emt 0:
00:00]} 28. Ra7 {[%emt 0:00:36]} Rc7 {[%emt 0:00:28]} 29. Rxc7 {[%emt 0:01:33]}
Qxc7 {[%emt 0:00:12]} 30. Ra8 {[%emt 0:00:26]} Rxa8 {[%emt 0:01:23]} 31. Qxa8+
{[%emt 0:00:08]} Kh7 {[%emt 0:00:20]} 32. Qe8 {[%emt 0:03:09]} Ne5 {[%emt 0:00:
00]} 33. Nxe5 {[%emt 0:01:44]} Qxe5 {[%emt 0:00:14]} 34. Qxf7 {[%emt 0:00:10]}
Bf6 {[%emt 0:00:14]} 35. Qd7 {[%emt 0:08:57]} Qxb2 {[%emt 0:00:51]} 36. Qf5+ {
[%emt 0:00:22]} Kg8 {[%emt 0:00:14]} 37. Qc8+ {[%emt 0:01:04]} Kh7 {[%emt 0:00:
00]} 38. Qf5+ {[%emt 0:00:19]} Kg8 {[%emt 0:00:35]} 39. Qc8+ {[%emt 0:00:15]}
Kf7 {[%emt 0:06:21]} 40. Qd7+ {[%emt 0:01:09]} Kg6 {[%emt 0:00:03]} 41. Qg4+ {
[%emt 0:30:40]} Kh7 {[%emt 0:30:26]} 1/2-1/2

[Event "44th Chess Olympiad Open 2022"]
[Site "Chennai"]
[Date "2022.07.31"]
[Round "3.48"]
[White "Barrish, Daniel"]
[Black "Guillaume, Jude Mirvens"]
[Result "1-0"]
[WhiteElo "2283"]
[BlackElo "2022"]
[Annotator "RC"]
[PlyCount "61"]
[EventDate "2022.??.??"]
[TimeControl "60"]

1. d4 {[%emt 0:00:10]} d5 {[%emt 0:00:12]} 2. c4 {[%emt 0:00:11]} e6 {[%emt 0:
00:00]} 3. Nc3 {[%emt 0:00:17]} Nf6 {[%emt 0:00:23]} 4. cxd5 {[%emt 0:00:08]}
exd5 {[%emt 0:00:17]} 5. Bg5 {[%emt 0:00:07]} Be7 {[%emt 0:01:36]} 6. e3 {
[%emt 0:00:07]} c6 {[%emt 0:00:36]} 7. Bd3 {[%emt 0:00:10]} Be6 {[%emt 0:01:25]
} 8. Nge2 {[%emt 0:00:37]} Nbd7 {[%emt 0:03:08]} 9. Nf4 {[%emt 0:00:59]} Qc7 {
[%emt 0:07:42]} 10. Qc2 {[%emt 0:02:57]} Rc8 {[%emt 0:03:25]} 11. O-O {[%emt 0:
00:00]} O-O {[%emt 0:06:23]} 12. Bxh7+ {[%emt 0:02:32]} Nxh7 {[%emt 0:00:57]}
13. Bxe7 {[%emt 0:00:08]} Rfe8 {[%emt 0:00:24]} 14. Nxe6 {[%emt 0:00:50]} fxe6
{[%emt 0:00:04]} 15. Bh4 {[%emt 0:00:07]} e5 {[%emt 0:00:44]} 16. Bg3 {[%emt 0:
00:00]} Qd8 {[%emt 0:03:11]} 17. dxe5 {[%emt 0:01:17]} Nxe5 {[%emt 0:00:12]}
18. Qb3 {[%emt 0:01:15]} Kh8 {[%emt 0:07:56]} 19. Qxb7 {[%emt 0:02:11]} a5 {
[%emt 0:06:16]} 20. Rad1 {[%emt 0:04:00]} Rb8 {[%emt 0:02:14]} 21. Qa7 {
[%emt 0:02:11]} Qf6 {[%emt 0:05:55]} 22. e4 {[%emt 0:03:47]} Rxb2 {[%emt 0:00:
00]} 23. exd5 {[%emt 0:02:04]} Nf3+ {[%emt 0:09:55]} 24. gxf3 {[%emt 0:00:28]}
Qxf3 {[%emt 0:02:02]} 25. Qd4 {[%emt 0:03:33]} Rb4 {[%emt 0:09:09]} 26. Qd3 {
[%emt 0:00:56]} Qg4 {[%emt 0:00:32]} 27. Rfe1 {[%emt 0:01:21]} Rd8 {[%emt 0:00:
00]} 28. Re4 {[%emt 0:01:17]} Rxe4 {[%emt 0:04:42]} 29. Qxe4 {[%emt 0:02:27]}
Qxe4 {[%emt 0:00:29]} 30. Nxe4 {[%emt 0:00:04]} cxd5 {[%emt 0:00:11]} 31. Nd6 {
[%emt 0:00:18]} 1-0

[Event "44th Chess Olympiad Open 2022"]
[Site "Chennai"]
[Date "2022.07.31"]
[Round "3.48"]
[White "Jean Louis, Marckens"]
[Black "Solomon, Kenny"]
[Result "0-1"]
[WhiteElo "2050"]
[BlackElo "2355"]
[Annotator "RC"]
[PlyCount "104"]
[EventDate "2022.??.??"]
[TimeControl "60"]

1. e4 {[%emt 0:00:21]} c5 {[%emt 0:00:05]} 2. Nf3 {[%emt 0:00:29]} d6 {[%emt 0:
00:00]} 3. Nc3 {[%emt 0:00:17]} Nf6 {[%emt 0:00:17]} 4. d4 {[%emt 0:02:35]}
cxd4 {[%emt 0:00:06]} 5. Nxd4 {[%emt 0:00:08]} a6 {[%emt 0:00:05]} 6. Be2 {
[%emt 0:00:46]} e5 {[%emt 0:00:06]} 7. Nb3 {[%emt 0:00:20]} Be7 {[%emt 0:00:13]
} 8. Be3 {[%emt 0:02:23]} Be6 {[%emt 0:00:08]} 9. f4 {[%emt 0:04:56]} exf4 {
[%emt 0:01:54]} 10. Bxf4 {[%emt 0:00:30]} Nc6 {[%emt 0:01:56]} 11. O-O {
[%emt 0:05:27]} O-O {[%emt 0:00:34]} 12. Kh1 {[%emt 0:04:25]} Ne5 {[%emt 0:00:
00]} 13. Nd4 {[%emt 0:01:34]} Rc8 {[%emt 0:01:43]} 14. Nxe6 {[%emt 0:03:23]}
fxe6 {[%emt 0:00:06]} 15. Bxe5 {[%emt 0:00:10]} dxe5 {[%emt 0:00:07]} 16. Qxd8
{[%emt 0:01:16]} Bxd8 {[%emt 0:07:42]} 17. Bd3 {[%emt 0:05:38]} Ba5 {[%emt 0:
00:00]} 18. Nd1 {[%emt 0:02:18]} Nxe4 {[%emt 0:02:26]} 19. Rxf8+ {[%emt 0:00:
00]} Rxf8 {[%emt 0:00:06]} 20. a3 {[%emt 0:04:04]} Bd2 {[%emt 0:17:58]} 21. g3
{[%emt 0:03:01]} Nd6 {[%emt 0:08:47]} 22. Kg2 {[%emt 0:04:48]} e4 {[%emt 0:00:
00]} 23. Be2 {[%emt 0:00:04]} Rc8 {[%emt 0:04:10]} 24. c3 {[%emt 0:00:45]} e3 {
[%emt 0:01:26]} 25. a4 {[%emt 0:01:54]} Rc5 {[%emt 0:12:02]} 26. Ra3 {[%emt 0:
00:00]} Kf8 {[%emt 0:00:43]} 27. b4 {[%emt 0:10:58]} Rc8 {[%emt 0:02:25]} 28.
Kf3 {[%emt 0:01:33]} Ke7 {[%emt 0:00:16]} 29. Bd3 {[%emt 0:00:43]} e5 {[%emt 0:
00:00]} 30. Ke2 {[%emt 0:15:24]} e4 {[%emt 0:00:36]} 31. Bb1 {[%emt 0:00:15]}
Kf6 {[%emt 0:06:04]} 32. Rb3 {[%emt 0:03:31]} Ke5 {[%emt 0:01:23]} 33. Ba2 {
[%emt 0:03:17]} h5 {[%emt 0:05:50]} 34. b5 {[%emt 0:02:03]} axb5 {[%emt 0:00:
00]} 35. axb5 {[%emt 0:01:39]} Ra8 {[%emt 0:00:00]} 36. Bb1 {[%emt 0:01:56]} b6
{[%emt 0:01:42]} 37. Nxe3 {[%emt 0:03:50]} Bxe3 {[%emt 0:00:09]} 38. Kxe3 {
[%emt 0:00:08]} Nc4+ {[%emt 0:00:58]} 39. Ke2 {[%emt 0:01:04]} Rd8 {[%emt 0:00:
00]} 40. Rb4 {[%emt 0:01:17]} Rd2+ {[%emt 0:00:30]} 41. Ke1 {[%emt 0:31:01]}
Rxh2 {[%emt 0:06:36]} 42. Rxc4 {[%emt 0:00:00]} Rh1+ {[%emt 0:00:06]} 43. Kf2 {
[%emt 0:00:00]} Rxb1 {[%emt 0:00:30]} 44. Ke3 {[%emt 0:00:00]} Kf5 {[%emt 0:00:
00]} 45. Rc7 {[%emt 0:00:00]} g5 {[%emt 0:02:35]} 46. Rf7+ {[%emt 0:00:00]} Kg4
{[%emt 0:00:23]} 47. c4 {[%emt 0:00:00]} Kxg3 {[%emt 0:08:04]} 48. Kxe4 {
[%emt 0:00:00]} h4 {[%emt 0:00:08]} 49. Kd5 {[%emt 0:00:00]} h3 {[%emt 0:00:30]
} 50. Kc6 {[%emt 0:00:00]} h2 {[%emt 0:01:06]} 51. Rh7 {[%emt 0:00:00]} Rb4 {
[%emt 0:00:03]} 52. Kxb6 {[%emt 0:00:00]} Rxc4 {[%emt 0:00:09]} 0-1

[Event "44th Chess Olympiad Open 2022"]
[Site "Chennai"]
[Date "2022.07.31"]
[Round "3.48"]
[White "Etienne, Angelo"]
[Black "Mhango, Banele"]
[Result "0-1"]
[WhiteElo "2036"]
[BlackElo "2238"]
[Annotator "RC"]
[PlyCount "148"]
[EventDate "2022.??.??"]
[TimeControl "60"]

1. d4 {[%emt 0:00:01]} Nf6 {[%emt 0:00:33]} 2. c4 {[%emt 0:03:30]} g6 {[%emt 0:
00:00]} 3. Nc3 {[%emt 0:00:11]} Bg7 {[%emt 0:00:08]} 4. g3 {[%emt 0:00:18]} d5
{[%emt 0:03:35]} 5. cxd5 {[%emt 0:01:15]} Nxd5 {[%emt 0:00:18]} 6. Bg2 {
[%emt 0:00:01]} Nb6 {[%emt 0:00:12]} 7. Nf3 {[%emt 0:00:48]} O-O {[%emt 0:00:
00]} 8. O-O {[%emt 0:00:36]} Nc6 {[%emt 0:01:41]} 9. e3 {[%emt 0:07:29]} Bg4 {
[%emt 0:04:07]} 10. h3 {[%emt 0:01:07]} Bd7 {[%emt 0:00:08]} 11. Qe2 {[%emt 0:
00:00]} Qc8 {[%emt 0:01:25]} 12. Kh2 {[%emt 0:00:10]} Re8 {[%emt 0:01:15]} 13.
Bd2 {[%emt 0:02:53]} e5 {[%emt 0:00:26]} 14. d5 {[%emt 0:02:08]} Nb4 {[%emt 0:
00:00]} 15. e4 {[%emt 0:03:04]} c6 {[%emt 0:02:20]} 16. a3 {[%emt 0:00:57]} Nc2
{[%emt 0:08:22]} 17. Rac1 {[%emt 0:00:01]} Nd4 {[%emt 0:00:06]} 18. Qd3 {
[%emt 0:05:44]} Nxf3+ {[%emt 0:09:42]} 19. Qxf3 {[%emt 0:00:11]} Nc4 {[%emt 0:
00:00]} 20. Qe2 {[%emt 0:00:25]} Nxd2 {[%emt 0:04:45]} 21. Qxd2 {[%emt 0:00:02]
} Qd8 {[%emt 0:03:30]} 22. Rfd1 {[%emt 0:04:10]} h5 {[%emt 0:12:39]} 23. dxc6 {
[%emt 0:06:32]} Bxc6 {[%emt 0:00:06]} 24. Nd5 {[%emt 0:00:49]} Ba4 {[%emt 0:00:
00]} 25. Re1 {[%emt 0:02:28]} h4 {[%emt 0:04:02]} 26. Qb4 {[%emt 0:00:11]} Bc6
{[%emt 0:00:18]} 27. Red1 {[%emt 0:00:13]} Bh6 {[%emt 0:01:15]} 28. Rc3 {
[%emt 0:02:18]} Kg7 {[%emt 0:01:15]} 29. Rf3 {[%emt 0:00:25]} Re6 {[%emt 0:00:
00]} 30. Ne3 {[%emt 0:03:00]} Qf8 {[%emt 0:01:26]} 31. Qxf8+ {[%emt 0:00:46]}
Rxf8 {[%emt 0:00:20]} 32. Nd5 {[%emt 0:00:01]} Rd8 {[%emt 0:03:10]} 33. Rfd3 {
[%emt 0:00:32]} Bb5 {[%emt 0:00:18]} 34. Rc3 {[%emt 0:00:21]} hxg3+ {[%emt 0:
00:00]} 35. Kxg3 {[%emt 0:02:12]} Be2 {[%emt 0:02:42]} 36. Re1 {[%emt 0:01:04]}
Bh5 {[%emt 0:00:18]} 37. f4 {[%emt 0:21:02]} exf4+ {[%emt 0:01:28]} 38. Nxf4 {
[%emt 0:00:02]} Bxf4+ {[%emt 0:00:09]} 39. Kxf4 {[%emt 0:00:01]} Rd2 {[%emt 0:
00:00]} 40. Bf1 {[%emt 0:01:31]} Rxb2 {[%emt 0:00:42]} 41. e5 {[%emt 0:30:39]}
Kh6 {[%emt 0:31:50]} 42. Bc4 {[%emt 0:03:34]} Rc6 {[%emt 0:00:28]} 43. Rec1 {
[%emt 0:00:01]} g5+ {[%emt 0:00:43]} 44. Kg3 {[%emt 0:01:18]} Rc5 {[%emt 0:00:
00]} 45. e6 {[%emt 0:02:30]} f5 {[%emt 0:00:29]} 46. R1c2 {[%emt 0:00:11]} f4+
{[%emt 0:00:42]} 47. Kf2 {[%emt 0:00:10]} Rxc2+ {[%emt 0:00:04]} 48. Rxc2 {
[%emt 0:00:02]} Bg6 {[%emt 0:00:07]} 49. e7 {[%emt 0:00:02]} Re5 {[%emt 0:00:
00]} 50. Re2 {[%emt 0:00:54]} Rxe2+ {[%emt 0:00:06]} 51. Kxe2 {[%emt 0:00:01]}
Be8 {[%emt 0:00:08]} 52. Kf3 {[%emt 0:00:37]} Kg6 {[%emt 0:01:10]} 53. Be6 {
[%emt 0:02:49]} Kf6 {[%emt 0:01:45]} 54. Bc8 {[%emt 0:00:02]} Bh5+ {[%emt 0:00:
00]} 55. Ke4 {[%emt 0:00:30]} Bg6+ {[%emt 0:05:20]} 56. Kf3 {[%emt 0:00:07]} b6
{[%emt 0:08:14]} 57. Kg4 {[%emt 0:00:39]} Be8 {[%emt 0:00:11]} 58. Bf5 {
[%emt 0:02:17]} a5 {[%emt 0:00:26]} 59. Bc8 {[%emt 0:00:22]} b5 {[%emt 0:01:08]
} 60. h4 {[%emt 0:01:23]} gxh4 {[%emt 0:00:08]} 61. Kxh4 {[%emt 0:00:01]} Kxe7
{[%emt 0:00:32]} 62. Bb7 {[%emt 0:02:12]} Kf6 {[%emt 0:00:10]} 63. Kg4 {
[%emt 0:00:03]} Ke5 {[%emt 0:00:03]} 64. Kf3 {[%emt 0:00:03]} Bh5+ {[%emt 0:00:
00]} 65. Kf2 {[%emt 0:00:02]} Kd4 {[%emt 0:00:08]} 66. Bc6 {[%emt 0:00:04]} b4
{[%emt 0:00:04]} 67. axb4 {[%emt 0:00:09]} axb4 {[%emt 0:00:04]} 68. Bd7 {
[%emt 0:02:46]} b3 {[%emt 0:00:18]} 69. Be6 {[%emt 0:00:04]} b2 {[%emt 0:00:12]
} 70. Bf5 {[%emt 0:00:01]} Kc3 {[%emt 0:00:26]} 71. Ke1 {[%emt 0:00:02]} Bf7 {
[%emt 0:00:29]} 72. Bb1 {[%emt 0:00:12]} Bb3 {[%emt 0:00:28]} 73. Ke2 {[%emt 0:
00:00]} Bc2 {[%emt 0:00:11]} 74. Ba2 {[%emt 0:00:01]} Kb4 {[%emt 0:00:11]} 0-1

[Event "44th Chess Olympiad Open 2022"]
[Site "Chennai"]
[Date "2022.07.31"]
[Round "3.49"]
[White "Tologontegin, Semetey"]
[Black "Gajadin, Dewperkash"]
[Result "1-0"]
[WhiteElo "2378"]
[BlackElo "1990"]
[Annotator "RC"]
[PlyCount "73"]
[EventDate "2022.??.??"]
[TimeControl "60"]

1. c4 {[%emt 0:02:47]} c5 {[%emt 0:00:28]} 2. g3 {[%emt 0:00:11]} Nf6 {[%emt 0:
00:00]} 3. Bg2 {[%emt 0:00:13]} g6 {[%emt 0:02:16]} 4. Nc3 {[%emt 0:00:08]} Bg7
{[%emt 0:00:11]} 5. b3 {[%emt 0:00:12]} O-O {[%emt 0:02:07]} 6. Bb2 {[%emt 0:
00:00]} Nc6 {[%emt 0:11:04]} 7. d3 {[%emt 0:01:00]} b6 {[%emt 0:11:09]} 8. e3 {
[%emt 0:00:32]} Bb7 {[%emt 0:06:02]} 9. Nge2 {[%emt 0:00:15]} e6 {[%emt 0:00:
00]} 10. e4 {[%emt 0:19:24]} d5 {[%emt 0:06:44]} 11. exd5 {[%emt 0:00:14]} exd5
{[%emt 0:00:05]} 12. Nxd5 {[%emt 0:00:45]} Nxd5 {[%emt 0:00:21]} 13. Bxg7 {
[%emt 0:00:07]} Ndb4 {[%emt 0:08:50]} 14. Bc3 {[%emt 0:11:33]} Nxd3+ {[%emt 0:
00:00]} 15. Kf1 {[%emt 0:00:57]} Qd7 {[%emt 0:01:20]} 16. Nf4 {[%emt 0:01:51]}
Nce5 {[%emt 0:06:24]} 17. Bxe5 {[%emt 0:37:35]} Bxg2+ {[%emt 0:08:41]} 18. Kxg2
{[%emt 0:00:07]} Qb7+ {[%emt 0:00:51]} 19. Nd5 {[%emt 0:00:21]} Nxe5 {[%emt 0:
00:00]} 20. Re1 {[%emt 0:00:07]} f6 {[%emt 0:10:10]} 21. f4 {[%emt 0:14:50]}
Nc6 {[%emt 0:00:29]} 22. Qg4 {[%emt 0:00:03]} Rf7 {[%emt 0:04:46]} 23. f5 {
[%emt 0:07:14]} Kg7 {[%emt 0:02:26]} 24. Kg1 {[%emt 0:00:05]} Ne5 {[%emt 0:00:
00]} 25. Rxe5 {[%emt 0:01:28]} fxe5 {[%emt 0:00:13]} 26. f6+ {[%emt 0:00:01]}
Rxf6 {[%emt 0:00:54]} 27. Nxf6 {[%emt 0:00:04]} Kxf6 {[%emt 0:00:42]} 28. Rd1 {
[%emt 0:01:10]} Re8 {[%emt 0:00:36]} 29. Rd7 {[%emt 0:00:06]} Qc6 {[%emt 0:00:
00]} 30. Qh4+ {[%emt 0:01:19]} Ke6 {[%emt 0:00:25]} 31. Qh3+ {[%emt 0:00:02]}
Kf6 {[%emt 0:00:34]} 32. Qxh7 {[%emt 0:00:08]} Rf8 {[%emt 0:00:33]} 33. Qe7+ {
[%emt 0:00:19]} Kf5 {[%emt 0:00:29]} 34. Qxf8+ {[%emt 0:00:06]} Kg4 {[%emt 0:
00:00]} 35. h3+ {[%emt 0:00:38]} Kxh3 {[%emt 0:00:39]} 36. Qh6+ {[%emt 0:00:21]
} Kxg3 {[%emt 0:00:16]} 37. Qg5+ {[%emt 0:00:30]} 1-0